bitfinex-derivatives/quotes_BTCF0:USTF0_20250907
["timestamp","ask_amount","ask_price","bid_price","bid_amount"]
[1757235583216,0.02348,111140.0,111130.0,0.53415849]
[1757235583520,0.02348,111140.0,111130.0,0.87415849]
[1757235583915,0.02348,111140.0,111130.0,0.98697298]
[1757235585019,0.02348,111140.0,111130.0,0.87415849]
[1757235586220,0.02348,111140.0,111130.0,0.53415849]
[1757235589827,0.17945381,111140.0,111130.0,0.53415849]
[1757235590025,0.17945381,111140.0,111130.0,0.54415849]
[1757235590824,0.17945381,111140.0,111130.0,0.86415849]
[1757235592126,0.02348,111140.0,111130.0,0.86415849]
[1757235593829,0.02348,111140.0,111130.0,0.85415849]
[1757235594330,0.02348,111140.0,111130.0,0.53415849]
[1757235594528,0.02348,111140.0,111130.0,0.54415849]
[1757235597334,0.02348,111140.0,111130.0,0.38818468]
[1757235597540,0.58674482,111140.0,111130.0,0.04587]
[1757235597743,0.58674482,111140.0,111130.0,0.03587]
[1757235601433,0.58674482,111140.0,111130.0,0.02321]
[1757235601642,0.59329482,111140.0,111130.0,0.11303828]
[1757235602042,0.59329482,111140.0,111130.0,0.0001]
[1757235602440,0.59329482,111140.0,111130.0,0.02287]
[1757235603339,1.0922372,111140.0,111130.0,0.03652]
[1757235603543,1.40418482,111140.0,111130.0,0.03652]
[1757235606046,0.58674482,111140.0,111130.0,0.03652]
[1757235606243,1.40418482,111140.0,111130.0,0.03652]
[1757235606441,0.2747972,111140.0,111130.0,0.03652]
[1757235606641,1.40418482,111140.0,111130.0,0.11719298]
[1757235609451,1.24816892,111140.0,111130.0,0.11719298]
[1757235609950,1.0922372,111140.0,111130.0,0.11719298]
[1757235610150,1.24816892,111140.0,111130.0,0.11719298]
[1757235610551,1.24812892,111140.0,111130.0,0.03652]
[1757235611651,1.0921972,111140.0,111130.0,0.03652]
[1757235611851,1.24828892,111140.0,111130.0,0.03652]
[1757235613452,1.24828892,111140.0,111130.0,0.11714907]
[1757235617554,1.24816892,111140.0,111130.0,0.11714907]
[1757235618054,0.43072892,111140.0,111130.0,0.11714907]
[1757235618254,1.24816892,111140.0,111130.0,0.11714907]
[1757235622153,1.0922372,111140.0,111130.0,0.11714907]
[1757235622456,1.24816892,111140.0,111130.0,0.11714907]
[1757235623358,0.8422372,111140.0,111130.0,0.11714907]
[1757235623560,0.8422372,111140.0,111130.0,0.44245172]
[1757235624154,0.8422372,111140.0,111130.0,0.28652]
[1757235625862,0.0247972,111140.0,111130.0,0.44245172]
[1757235626062,0.8422372,111140.0,111130.0,0.28652]
[1757235627553,0.8422372,111140.0,111130.0,0.39944997]
[1757235628662,0.99816892,111140.0,111130.0,0.14944997]
[1757235637766,0.99816892,111140.0,111130.0,0.03652]
[1757235638364,0.99816892,111140.0,111130.0,0.14945465]
[1757235639370,0.99685172,111140.0,111130.0,0.14945465]
[1757235647080,0.84092,111140.0,111130.0,0.14945465]
[1757235647277,0.99685172,111140.0,111130.0,0.14945465]
[1757235653388,0.99685172,111140.0,111130.0,0.03652]
[1757235660088,0.84092,111140.0,111130.0,0.03652]
[1757235660291,0.99685172,111140.0,111130.0,0.03652]
[1757235660795,0.99665172,111140.0,111130.0,0.03652]
[1757235663190,0.99665172,111140.0,111130.0,0.14945465]
[1757235663384,0.84072,111140.0,111130.0,0.14945465]
[1757235663582,0.99665172,111140.0,111130.0,0.14945465]
[1757235663781,0.99665172,111140.0,111130.0,0.03652]
[1757235667291,0.99665172,111140.0,111130.0,0.14945465]
[1757235668095,0.99665172,111140.0,111130.0,0.03652]
[1757235669293,0.99665172,111140.0,111130.0,0.14945465]
[1757235669493,0.99665172,111140.0,111130.0,0.30537268]
[1757235669494,1.15255606,111140.0,111130.0,0.30537268]
[1757235670492,1.15255606,111140.0,111130.0,0.14945465]
[1757235670700,1.15255606,111140.0,111130.0,0.19243803]
[1757235671400,0.84072,111140.0,111130.0,0.19243803]
[1757235671598,1.15255606,111140.0,111130.0,0.19243803]
[1757235672494,0.02348,111140.0,111130.0,0.19243803]
[1757235672699,1.15247606,111140.0,111130.0,0.30537268]
[1757235677299,0.99655803,111140.0,111130.0,0.30537268]
[1757235681305,0.99655803,111140.0,111130.0,0.38611919]
[1757235681494,1.15247606,111140.0,111130.0,0.27318454]
[1757235681907,1.15247606,111140.0,111130.0,0.11726651]
[1757235682203,1.15247606,111140.0,111130.0,0.27318454]
[1757235688509,0.84064,111140.0,111130.0,0.27318454]
[1757235688710,1.15247606,111140.0,111130.0,0.27318454]
[1757235691313,1.15247606,111140.0,111130.0,0.19243803]
[1757235691613,1.17830675,111140.0,111130.0,0.11303465]
[1757235691802,1.42830675,111140.0,111130.0,0.11303465]
[1757235691998,1.42830675,111140.0,111130.0,0.19379294]
[1757235692210,1.42830675,111140.0,111130.0,0.08085829]
[1757235693511,1.42830675,111140.0,111130.0,0.0001]
[1757235696015,1.42830675,111140.0,111130.0,0.08085829]
[1757235699310,1.17698955,111140.0,111130.0,0.08085829]
[1757235702828,1.17698955,111140.0,111130.0,0.0001]
[1757235703117,1.17698955,111140.0,111130.0,0.08085829]
[1757235703512,1.17698955,111140.0,111130.0,0.0001]
[1757235705520,1.17674955,111140.0,111130.0,0.0001]
[1757235706608,0.35982955,111140.0,111130.0,0.0001]
[1757235706814,1.10750955,111140.0,111130.0,0.0001]
[1757235707016,0.35982955,111140.0,111130.0,0.0001]
[1757235707322,1.10746955,111140.0,111130.0,0.0001]
[1757235709124,0.35982955,111140.0,111130.0,0.0001]
[1757235709324,1.17670955,111140.0,111130.0,0.0001]
[1757235711826,0.35982955,111140.0,111130.0,0.0001]
[1757235712120,1.17670955,111140.0,111130.0,0.0001]
[1757235712719,0.35982955,111140.0,111130.0,0.0001]
[1757235712918,1.17670955,111140.0,111130.0,0.0001]
[1757235713522,1.17670955,111140.0,111130.0,0.08085829]
[1757235717429,0.86487349,111140.0,111130.0,0.08085829]
[1757235717630,1.17670955,111140.0,111130.0,0.08085829]
[1757235720729,1.17662955,111140.0,111130.0,0.08085829]
[1757235723632,1.17658955,111140.0,111130.0,0.08085829]
[1757235724135,1.17658955,111140.0,111130.0,0.0001]
[1757235726132,0.03482,111120.0,111110.0,0.08065829]
[1757235726331,0.49912892,111120.0,111110.0,0.10177829]
[1757235726531,1.16926973,111120.0,111110.0,0.27031632]
[1757235726844,1.16926973,111120.0,111110.0,0.11439829]
[1757235728131,1.16926973,111120.0,111110.0,0.11539829]
[1757235728431,0.35250973,111120.0,111110.0,0.10277829]
[1757235728636,1.16922973,111120.0,111110.0,0.11539829]
[1757235728838,1.16922973,111120.0,111110.0,0.11639829]
[1757235729637,1.16922973,111120.0,111110.0,0.11539829]
[1757235729841,0.35250973,111120.0,111110.0,0.11539829]
[1757235730034,1.16922973,111120.0,111110.0,0.11539829]
[1757235731438,1.01338793,111120.0,111110.0,0.11539829]
[1757235732237,1.17069939,111120.0,111110.0,0.08165829]
[1757235732434,0.85871087,111120.0,111110.0,0.001]
[1757235732634,0.85871087,111120.0,111110.0,0.11393465]
[1757235732635,1.01470513,111120.0,111110.0,0.11393465]
[1757235732837,1.01470513,111120.0,111110.0,0.001]
[1757235733234,1.01470513,111120.0,111110.0,0.02212]
[1757235733639,1.01470513,111120.0,111110.0,0.13505465]
[1757235734439,1.01470513,111120.0,111110.0,0.02212]
[1757235735142,0.85871087,111120.0,111110.0,0.02212]
[1757235735343,1.01470513,111120.0,111110.0,0.02212]
[1757235737844,1.01470513,111120.0,111110.0,0.13505465]
[1757235738341,1.01470513,111120.0,111110.0,0.11393465]
[1757235739037,1.01470513,111120.0,111110.0,0.11373465]
[1757235740650,1.17069939,111120.0,111110.0,0.11373465]
[1757235741245,1.01470513,111120.0,111110.0,0.11373465]
[1757235744644,1.17069939,111120.0,111110.0,0.11373465]
[1757235744939,1.01470513,111120.0,111110.0,0.15063465]
[1757235745536,1.01470513,111120.0,111110.0,0.13674465]
[1757235747044,1.01470513,111120.0,111110.0,0.11383465]
[1757235751654,1.17069939,111120.0,111110.0,0.11383465]
[1757235751853,1.17069939,111120.0,111110.0,0.08169987]
[1757235754543,1.42069939,111120.0,111110.0,0.08169987]
[1757235754742,1.76069939,111120.0,111110.0,0.05536987]
[1757235755455,1.76069939,111120.0,111090.0,0.11293465]
[1757235755645,0.17432636,111100.0,111090.0,0.11293465]
[1757235755847,0.99276356,111100.0,111090.0,0.11293465]
[1757235756255,0.99276356,111100.0,111080.0,0.03575]
[1757235756456,0.15599426,111090.0,111080.0,0.10575]
[1757235757253,0.16484257,111090.0,111080.0,0.10575]
[1757235757854,0.16484257,111090.0,111080.0,0.10775]
[1757235758658,0.16484257,111090.0,111080.0,0.10875]
[1757235758852,0.16615977,111090.0,111080.0,0.35875]
[1757235759257,0.16484257,111090.0,111080.0,0.10875]
[1757235759559,0.01016551,111090.0,111080.0,0.51474426]
[1757235759754,0.01016551,111090.0,111080.0,0.44474426]
[1757235760152,0.08288477,111090.0,111080.0,0.44474426]
[1757235760352,0.01016551,111090.0,111080.0,0.44474426]
[1757235760549,0.67956551,111090.0,111080.0,0.44474426]
[1757235760750,0.67956551,111090.0,111080.0,0.71434426]
[1757235761460,0.67956551,111090.0,111080.0,0.73434426]
[1757235762760,0.67956551,111090.0,111080.0,0.57835]
[1757235762960,0.67956551,111090.0,111080.0,0.73434426]
[1757235763456,0.67956551,111090.0,111080.0,0.57835]
[1757235763662,0.67956551,111090.0,111080.0,0.46474426]
[1757235763862,0.67956551,111090.0,111080.0,0.54552117]
[1757235765561,0.67956551,111090.0,111080.0,0.38952691]
[1757235768161,0.67956551,111090.0,111080.0,0.30875]
[1757235769363,0.67963551,111090.0,111080.0,0.30871]
[1757235769760,0.67963551,111090.0,111080.0,0.46470426]
[1757235771568,0.83562977,111090.0,111080.0,0.05871]
[1757235771866,0.83562977,111090.0,111080.0,0.13944077]
[1757235774971,0.67963551,111090.0,111080.0,0.13944077]
[1757235775269,0.67963551,111090.0,111080.0,0.29543503]
[1757235775665,0.67963551,111090.0,111080.0,0.21470426]
[1757235775967,0.01023551,111090.0,111080.0,0.05871]
[1757235776165,0.48711551,111090.0,111080.0,0.21470426]
[1757235779171,0.48711551,111090.0,111080.0,0.32763891]
[1757235781268,0.48711551,111090.0,111080.0,0.17164465]
[1757235781466,0.48711551,111090.0,111080.0,0.15164465]
[1757235781666,0.64310977,111090.0,111080.0,0.15164465]
[1757235782068,0.48711551,111090.0,111080.0,0.15164465]
[1757235782572,0.64310977,111090.0,111080.0,0.15164465]
[1757235784875,0.64310977,111090.0,111080.0,0.03871]
[1757235785172,0.64310977,111090.0,111080.0,0.15164465]
[1757235786474,0.16622977,111090.0,111080.0,0.15164465]
[1757235786674,0.01023551,111090.0,111080.0,0.15164465]
[1757235787672,0.01023551,111090.0,111080.0,0.30763891]
[1757235793578,0.1662687,111090.0,111080.0,0.30767784]
[1757235793781,0.1662687,111090.0,111080.0,0.19474319]
[1757235794882,0.1662687,111090.0,111080.0,0.30767784]
[1757235796481,0.1662687,111090.0,111080.0,0.19474319]
[1757235798685,0.01023551,111090.0,111080.0,0.35077638]
[1757235800180,0.00891831,111090.0,111080.0,0.35077638]
[1757235800883,0.00891831,111090.0,111080.0,0.37077638]
[1757235801684,0.00884831,111090.0,111080.0,0.37077638]
[1757235801886,1.06186583,111100.0,111090.0,0.01292]
[1757235802086,1.06186583,111100.0,111090.0,0.30395284]
[1757235802286,1.06318303,111100.0,111090.0,0.30395284]
[1757235803786,1.07230501,111100.0,111090.0,0.30495284]
[1757235806689,1.07246501,111100.0,111090.0,0.30495284]
[1757235812586,1.07230501,111100.0,111090.0,0.30495284]
[1757235814793,0.25530501,111100.0,111090.0,0.30495284]
[1757235815094,1.07230501,111100.0,111090.0,0.30495284]
[1757235815294,1.07230501,111100.0,111090.0,0.30499284]
[1757235816387,0.25530501,111100.0,111090.0,0.30499284]
[1757235816587,1.07230501,111100.0,111090.0,0.30499284]
[1757235819400,1.07098781,111100.0,111090.0,0.19170319]
[1757235820395,0.01824367,111120.0,111110.0,0.03463]
[1757235820596,0.01956087,111120.0,111110.0,0.27158738]
[1757235820797,0.01956087,111120.0,111110.0,0.19066319]
[1757235820997,0.02859622,111120.0,111110.0,0.30395284]
[1757235822403,0.03059622,111120.0,111110.0,0.30395284]
[1757235822702,0.03259622,111120.0,111110.0,0.32395284]
[1757235823807,0.03252622,111120.0,111110.0,0.30064949]
[1757235824203,0.03252622,111120.0,111110.0,0.38139011]
[1757235824807,0.03252622,111120.0,111110.0,0.29140381]
[1757235825199,0.10619038,111120.0,111110.0,0.29140381]
[1757235825506,0.03259622,111120.0,111110.0,0.29140381]
[1757235829015,0.03259622,111120.0,111110.0,0.56100381]
[1757235829509,0.03259622,111120.0,111110.0,0.40497062]
[1757235829714,0.10507986,111120.0,111110.0,0.56100381]
[1757235829908,0.02356087,111120.0,111110.0,0.56100381]
[1757235833012,0.18859505,111120.0,111110.0,0.56100381]
[1757235834517,0.26004228,111120.0,111110.0,0.56100381]
[1757235834817,0.10400909,111120.0,111110.0,0.56100381]
[1757235835016,0.26004228,111120.0,111110.0,0.56100381]
[1757235835517,0.10400909,111120.0,111110.0,0.56100381]
[1757235843821,0.10400909,111120.0,111110.0,0.48026319]
[1757235844022,0.10400909,111120.0,111110.0,0.32423]
[1757235844223,0.10400909,111120.0,111110.0,0.48026319]
[1757235845121,0.10400909,111120.0,111110.0,0.32423]
[1757235845323,0.10400909,111120.0,111110.0,0.48026319]
[1757235845517,0.10400909,111120.0,111110.0,0.32423]
[1757235845717,0.10400909,111120.0,111110.0,0.48026319]
[1757235846425,0.10400909,111120.0,111110.0,0.56100381]
[1757235848627,0.08593542,111120.0,111110.0,0.56100381]
[1757235853334,0.08593542,111120.0,111110.0,0.40497062]
[1757235853630,0.08593542,111120.0,111110.0,0.59355284]
[1757235855436,0.08593542,111120.0,111110.0,0.5934553]
[1757235855631,0.0054172,111120.0,111110.0,0.5934553]
[1757235856835,0.0054172,111120.0,111110.0,0.48016565]
[1757235857037,0.0054172,111120.0,111110.0,0.59335014]
[1757235857742,0.0054172,111120.0,111110.0,0.48016565]
[1757235860838,0.0054172,111120.0,111110.0,0.59334844]
[1757235861435,0.0044172,111120.0,111110.0,0.59334844]
[1757235861629,0.0135853,111120.0,111110.0,0.59334844]
[1757235861830,0.0034172,111120.0,111110.0,0.59334844]
[1757235862329,0.0034872,111120.0,111110.0,0.43741279]
[1757235862530,0.40942285,111120.0,111110.0,0.43741279]
[1757235862731,0.40942285,111120.0,111110.0,0.41741279]
[1757235863336,0.40942285,111120.0,111110.0,0.38508572]
[1757235864338,1.22602285,111120.0,111110.0,0.38508572]
[1757235864537,1.22602285,111120.0,111110.0,0.11548572]
[1757235864741,1.22602285,111120.0,111110.0,0.03463]
[1757235865541,1.23490766,111120.0,111110.0,0.03463]
[1757235865744,1.23490766,111120.0,111110.0,0.11548572]
[1757235867138,1.23490766,111120.0,111110.0,0.03463]
[1757235867341,1.23490766,111120.0,111110.0,0.14781279]
[1757235868742,1.07897201,111120.0,111110.0,0.14781279]
[1757235868944,1.23490766,111120.0,111110.0,0.03463]
[1757235869739,0.41830766,111120.0,111110.0,0.03463]
[1757235869943,1.07901201,111120.0,111110.0,0.03463]
[1757235873447,1.23494766,111120.0,111110.0,0.03463]
[1757235873635,1.23494766,111120.0,111110.0,0.14781279]
[1757235879255,0.98363046,111120.0,111110.0,0.14781279]
[1757235882954,0.01105481,111120.0,111110.0,0.14781279]
[1757235883154,0.82769481,111120.0,111110.0,0.14781279]
[1757235883557,0.82769481,111120.0,111110.0,0.22863711]
[1757235883757,0.82769481,111120.0,111110.0,0.11545432]
[1757235885261,0.82769481,111120.0,111110.0,0.03463]
[1757235885761,0.01105481,111120.0,111110.0,0.03463]
[1757235885962,0.82769481,111120.0,111110.0,0.19056565]
[1757235887662,0.82769481,111120.0,111110.0,0.03463]
[1757235888262,0.82769481,111120.0,111110.0,0.14781279]
[1757235893764,0.82769481,111120.0,111110.0,0.03463]
[1757235895168,0.82769481,111120.0,111110.0,0.19056565]
[1757235896566,0.98363046,111120.0,111110.0,0.03463]
[1757235900971,1.39088331,111120.0,111110.0,0.11329142]
[1757235901278,1.73088331,111120.0,111110.0,0.0809447]
[1757235901568,0.91424331,111120.0,111110.0,0.0809447]
[1757235901775,1.53080331,111120.0,111110.0,0.0809447]
[1757235902564,0.71424331,111120.0,111110.0,0.0809447]
[1757235902873,1.53084331,111120.0,111110.0,0.0809447]
[1757235903675,1.37490766,111120.0,111110.0,0.0809447]
[1757235904276,1.37486766,111120.0,111100.0,0.0939647]
[1757235904466,0.15600565,111110.0,111100.0,0.1155147]
[1757235904667,0.15732285,111110.0,111100.0,0.1154147]
[1757235905574,0.15732285,111110.0,111100.0,0.1164147]
[1757235906872,0.97392285,111110.0,111100.0,0.1164147]
[1757235907071,0.15732285,111110.0,111100.0,0.1164147]
[1757235907273,0.97392285,111110.0,111100.0,0.1164147]
[1757235908276,0.00013484,111130.0,111120.0,0.0899781]
[1757235908479,0.01803354,111160.0,111150.0,0.1253738]
[1757235908775,0.08056863,111180.0,111170.0,0.03542]
[1757235908976,0.01098069,111180.0,111170.0,0.1160723]
[1757235909176,0.01098069,111180.0,111170.0,0.03542]
[1757235909380,0.01098069,111180.0,111170.0,0.11592417]
[1757235910273,0.01098069,111180.0,111170.0,0.03542]
[1757235911082,0.01298069,111180.0,111170.0,0.03542]
[1757235911779,0.01498069,111180.0,111170.0,0.03542]
[1757235913080,0.08612321,111180.0,111170.0,0.03542]
[1757235915483,0.24192798,111180.0,111170.0,0.19122477]
[1757235915878,0.08612321,111180.0,111170.0,0.19122477]
[1757235917079,0.90244321,111180.0,111170.0,0.19122477]
[1757235917289,0.004,111180.0,111170.0,0.68696724]
[1757235919085,0.004,111180.0,111170.0,0.70696724]
[1757235923190,0.004,111180.0,111170.0,0.97656724]
[1757235923989,0.004,111180.0,111170.0,1.33656724]
[1757235924595,0.004,111180.0,111170.0,2.15280724]
[1757235925791,0.89675999,111200.0,111180.0,0.0899245]
[1757235925993,0.89675999,111200.0,111190.0,0.19216477]
[1757235925994,0.90359999,111200.0,111190.0,0.19216477]
[1757235926390,0.90491719,111200.0,111190.0,0.19216477]
[1757235927793,0.90491719,111200.0,111190.0,0.19716477]
[1757235927991,0.90491719,111200.0,111190.0,0.20216477]
[1757235929597,1.47080673,111200.0,111190.0,0.01]
[1757235929801,1.48764545,111200.0,111190.0,0.0086828]
[1757235938207,1.50927274,111200.0,111190.0,0.0086828]
[1757235939407,1.25907274,111200.0,111190.0,0.0086828]
[1757235941008,0.1314232,111200.0,111190.0,0.0086828]
[1757235941210,0.43875274,111200.0,111190.0,0.0450428]
[1757235941507,1.09898797,111200.0,111190.0,0.20084757]
[1757235941708,0.9431832,111200.0,111190.0,0.20084757]
[1757235941906,1.09898797,111200.0,111190.0,0.20084757]
[1757235942507,0.9431832,111200.0,111190.0,0.20084757]
[1757235942708,1.09898797,111200.0,111190.0,0.20084757]
[1757235943609,1.07736068,111200.0,111190.0,0.20084757]
[1757235945716,0.92155591,111200.0,111190.0,0.20084757]
[1757235945912,1.23316545,111200.0,111190.0,0.0086828]
[1757235946214,1.85316545,111200.0,111190.0,0.0086828]
[1757235946615,1.87495517,111200.0,111190.0,0.0086828]
[1757235950218,1.85316545,111200.0,111190.0,0.0086828]
[1757235950611,1.85316545,111200.0,111190.0,0.0044028]
[1757235950814,0.02548,111170.0,111150.0,0.08050417]
[1757235951016,0.99138477,111160.0,111140.0,0.36276036]
[1757235951215,0.17522477,111150.0,111140.0,0.31074894]
[1757235951419,0.17522477,111150.0,111140.0,0.23024477]
[1757235952120,0.01942,111150.0,111140.0,0.23024477]
[1757235952321,0.17522477,111150.0,111140.0,0.23024477]
[1757235952520,0.17722477,111150.0,111140.0,0.23024477]
[1757235953420,0.18625027,111150.0,111140.0,0.23024477]
[1757235953621,0.18725027,111150.0,111140.0,0.23024477]
[1757235954423,0.18725027,111150.0,111140.0,0.07444]
[1757235954621,0.18725027,111150.0,111140.0,0.23024477]
[1757235956724,1.00353027,111150.0,111140.0,0.23024477]
[1757235957019,1.73353027,111150.0,111140.0,0.23024477]
[1757235957415,1.00353027,111150.0,111140.0,0.23024477]
[1757235958720,1.00353027,111150.0,111140.0,0.07444]
[1757235959220,1.00353027,111150.0,111140.0,0.23024477]
[1757235959720,0.8477255,111150.0,111140.0,0.23024477]
[1757235959915,0.8477255,111150.0,111140.0,0.03444]
[1757235960120,1.00353027,111150.0,111130.0,0.27080756]
[1757235960318,0.17522477,111140.0,111130.0,0.36208756]
[1757235961926,0.24582427,111140.0,111130.0,0.36208756]
[1757235962427,0.24582427,111140.0,111130.0,0.36308756]
[1757235963928,0.24782427,111140.0,111130.0,0.36308756]
[1757235964929,1.06454427,111140.0,111130.0,0.36308756]
[1757235965130,1.06554427,111140.0,111130.0,0.36208756]
[1757235965330,1.06546427,111140.0,111130.0,0.36208756]
[1757235967028,0.9096595,111140.0,111130.0,0.36208756]
[1757235967332,0.9096595,111140.0,111130.0,0.28158339]
[1757235967529,1.06546427,111140.0,111130.0,0.28158339]
[1757235967732,0.9096595,111140.0,111130.0,0.28158339]
[1757235968434,0.0930195,111140.0,111130.0,0.39487481]
[1757235968636,0.9095395,111140.0,111130.0,0.39487481]
[1757235971834,0.9095395,111140.0,111130.0,0.47540952]
[1757235972235,0.9095395,111140.0,111130.0,0.3621181]
[1757235972636,0.9095395,111140.0,111130.0,0.28158339]
[1757235973236,1.06534427,111140.0,111130.0,0.28158339]
[1757235974934,1.22114904,111140.0,111130.0,0.12577862]
[1757235975139,1.22114904,111140.0,111130.0,0.20631333]
[1757235975140,1.06534427,111140.0,111130.0,0.20631333]
[1757235975339,0.9095395,111140.0,111130.0,0.3621181]
[1757235975540,0.9095395,111140.0,111130.0,0.20631333]
[1757235980547,0.9095395,111140.0,111130.0,0.12577862]
[1757235980742,0.9095395,111140.0,111130.0,0.10444]
[1757235983048,0.9095395,111140.0,111130.0,0.18524141]
[1757235983948,0.9095395,111140.0,111130.0,0.10444]
[1757235986553,1.06546658,111140.0,111130.0,0.10444]
[1757235987050,0.9095395,111140.0,111130.0,0.10444]
[1757235987849,0.9095395,111140.0,111130.0,0.21773142]
[1757235988353,0.9097795,111140.0,111130.0,0.21773142]
[1757235989554,0.9096595,111140.0,111130.0,0.3736585]
[1757235991758,0.0930195,111140.0,111130.0,0.3736585]
[1757235991950,0.9098595,111140.0,111130.0,0.3736585]
[1757235992151,0.0930195,111140.0,111130.0,0.3736585]
[1757235992459,0.0930195,111140.0,111130.0,0.46773142]
[1757235992654,0.0735995,111140.0,111130.0,0.60033698]
[1757235992951,0.0735995,111140.0,111130.0,0.7136284]
[1757235993160,0.003,111140.0,111130.0,1.0236284]
[1757235993353,0.003,111140.0,111130.0,0.91033698]
[1757235994054,0.00035873,111140.0,111130.0,0.91033698]
[1757235995160,0.00035873,111140.0,111130.0,1.17993698]
[1757235996158,0.00035873,111140.0,111130.0,1.1890599]
[1757235999263,0.00035873,111140.0,111130.0,0.9390599]
[1757236004063,4.21e-05,111140.0,111130.0,0.9390599]
[1757236005562,4.21e-05,111140.0,111130.0,1.74645698]
[1757236006260,4.21e-05,111140.0,111130.0,1.65648708]
[1757236006866,4.21e-05,111140.0,111130.0,1.74645718]
[1757236009869,4.21e-05,111140.0,111130.0,1.65648708]
[1757236011470,4.21e-05,111140.0,111130.0,1.74645738]
[1757236011969,4.21e-05,111140.0,111130.0,1.90813152]
[1757236013972,1.669e-05,111150.0,111130.0,1.90813152]
[1757236014172,1.669e-05,111150.0,111140.0,0.19137708]
[1757236014173,0.01943669,111150.0,111140.0,0.19137708]
[1757236014469,0.01943669,111150.0,111140.0,0.23137708]
[1757236015171,0.02043669,111150.0,111140.0,0.23137708]
[1757236015871,0.01943669,111150.0,111140.0,0.23137708]
[1757236016073,0.02143669,111150.0,111140.0,0.23137708]
[1757236016274,0.02343669,111150.0,111140.0,0.23137708]
[1757236016573,0.02343669,111150.0,111140.0,0.34446326]
[1757236016774,0.02443669,111150.0,111140.0,0.34446326]
[1757236018779,0.02443669,111150.0,111140.0,0.61406326]
[1757236019975,0.02443669,111150.0,111140.0,0.63522103]
[1757236020578,0.27443669,111150.0,111140.0,0.47929395]
[1757236021683,0.43036377,111150.0,111140.0,0.47929395]
[1757236021980,1.26526213,111150.0,111140.0,0.39667618]
[1757236022279,1.26526213,111150.0,111140.0,0.41813618]
[1757236022671,1.26526213,111150.0,111140.0,0.39667618]
[1757236023081,1.26526213,111150.0,111140.0,0.41813618]
[1757236024176,0.02359505,111150.0,111140.0,0.46097708]
[1757236024375,0.02359505,111150.0,111140.0,0.55093888]
[1757236024578,0.02359505,111150.0,111140.0,0.57406326]
[1757236024878,0.02359505,111150.0,111140.0,0.30446326]
[1757236025073,0.02359505,111150.0,111140.0,0.19137708]
[1757236025380,0.02359505,111150.0,111140.0,0.30446326]
[1757236026683,0.02359505,111150.0,111140.0,0.66446326]
[1757236029075,0.02359505,111150.0,111140.0,0.32446326]
[1757236029381,0.02359505,111150.0,111140.0,0.64446326]
[1757236029574,0.02359505,111150.0,111140.0,0.30446326]
[1757236031384,0.04301505,111150.0,111140.0,0.30446326]
[1757236033984,0.04299836,111150.0,111140.0,0.19137708]
[1757236037499,0.04299836,111150.0,111140.0,0.34716156]
[1757236037694,0.04299836,111150.0,111140.0,0.34726156]
[1757236043002,0.02357836,111150.0,111140.0,0.59307914]
[1757236043298,0.02357836,111150.0,111140.0,1.22307914]
[1757236044099,0.02357836,111150.0,111140.0,1.38475328]
[1757236044300,0.02057836,111150.0,111140.0,1.38475328]
[1757236044601,0.02257836,111150.0,111140.0,1.38475328]
[1757236044793,0.02057836,111150.0,111140.0,1.38475328]
[1757236044998,0.02157836,111150.0,111140.0,1.38475328]
[1757236046500,0.02157836,111150.0,111140.0,1.22307914]
[1757236047499,0.02157836,111150.0,111140.0,1.38475328]
[1757236048303,0.02057836,111150.0,111140.0,1.38475328]
[1757236048506,0.01957836,111150.0,111140.0,1.65435328]
[1757236048798,0.00023484,111160.0,111150.0,0.0899537]
[1757236048999,0.00013484,111160.0,111150.0,1.87231526]
[1757236049302,0.0001,111170.0,111160.0,0.1247556]
[1757236049606,0.01827461,111180.0,111170.0,0.1247476]
[1757236049897,0.01817461,111180.0,111170.0,1.25269916]
[1757236050904,0.02017461,111180.0,111170.0,1.57269916]
[1757236053104,0.02017461,111180.0,111170.0,1.7343733]
[1757236053705,0.02017461,111180.0,111170.0,0.75645916]
[1757236054004,0.02017461,111180.0,111170.0,1.57261916]
[1757236055204,0.02017461,111180.0,111170.0,1.68555401]
[1757236056407,0.02017461,111180.0,111170.0,1.68551401]
[1757236057405,0.02017461,111180.0,111170.0,1.95511401]
[1757236058110,0.02017461,111180.0,111170.0,1.13899401]
[1757236058302,0.02017461,111180.0,111170.0,1.95507401]
[1757236062308,0.02017461,111180.0,111170.0,1.04905641]
[1757236062505,0.02017461,111180.0,111170.0,1.70924063]
[1757236062705,0.04141461,111180.0,111170.0,0.89320063]
[1757236062905,0.44727039,111180.0,111170.0,0.41734485]
[1757236063108,0.60312617,111180.0,111170.0,0.11543714]
[1757236063413,0.60312617,111180.0,111170.0,0.03481]
[1757236063911,0.44727039,111180.0,111170.0,0.19066578]
[1757236066522,0.44727039,111180.0,111170.0,0.03481]
[1757236066812,0.44727039,111180.0,111170.0,0.19066578]
[1757236067208,0.60312617,111180.0,111170.0,0.19066578]
[1757236068419,0.44727039,111180.0,111170.0,0.19066578]
[1757236069212,0.29141461,111180.0,111170.0,0.19066578]
[1757236069418,0.44727039,111180.0,111170.0,0.19066578]
[1757236070823,0.29141461,111180.0,111170.0,0.19066578]
[1757236071019,0.44727039,111180.0,111170.0,0.19066578]
[1757236071215,0.42909578,111180.0,111170.0,0.19066578]
[1757236073816,0.42909578,111180.0,111170.0,0.27129292]
[1757236080527,0.42909578,111180.0,111170.0,0.11543714]
[1757236080728,0.42909578,111180.0,111170.0,0.27129292]
[1757236086828,0.27324,111180.0,111170.0,0.27129292]
[1757236087533,0.42909578,111180.0,111170.0,0.27129292]
[1757236090438,0.27324,111180.0,111170.0,0.27129292]
[1757236090638,1.24513578,111180.0,111170.0,0.27129292]
[1757236091235,1.24513578,111180.0,111170.0,0.19066578]
[1757236093437,1.24513578,111180.0,111170.0,0.30360063]
[1757236095335,1.24513578,111180.0,111170.0,0.14774485]
[1757236095639,1.24513578,111180.0,111170.0,0.30360063]
[1757236096640,1.08928,111180.0,111170.0,0.30360063]
[1757236097042,1.24513578,111180.0,111170.0,0.30360063]
[1757236099441,1.08928,111180.0,111170.0,0.30355173]
[1757236102839,1.08928,111180.0,111170.0,0.14774485]
[1757236103047,1.08928,111180.0,111170.0,0.30355173]
[1757236104448,0.27324,111180.0,111170.0,0.30355173]
[1757236104648,1.08928,111180.0,111170.0,0.30355173]
[1757236105648,1.08928,111180.0,111170.0,0.38455312]
[1757236105847,1.08928,111180.0,111170.0,0.27161827]
[1757236110250,1.08924,111180.0,111170.0,0.27161827]
[1757236110549,0.27324,111180.0,111170.0,0.11581139]
[1757236110746,0.02324,111180.0,111170.0,0.27161827]
[1757236110949,0.77636,111180.0,111170.0,0.27161827]
[1757236112349,0.002,111180.0,111170.0,0.61155597]
[1757236112651,0.818,111180.0,111170.0,0.44061688]
[1757236112952,0.83917,111180.0,111170.0,0.44061688]
[1757236113344,0.02317,111180.0,111170.0,0.44061688]
[1757236113742,0.02317,111180.0,111170.0,0.55396842]
[1757236116548,0.02317,111180.0,111170.0,0.64390532]